Cogmind - Beta 14 @@@ ROGUE MODE // 2024.12.27 @ 19:17:50 Player: LightKnight Result: Destroyed by S-43 Plague with Heavy Machine Gun Performance ------------- Evolutions (8) 4000 Regions Visited (14) 2800 Robots Destroyed (101) 505 Value Destroyed (3555) 3555 Prototype IDs (2) 40 Alien Tech Used (0) 0 Bonus (1202) 1202 TOTAL SCORE: 12102 Bonus ------- High Alert Combat Kills 78 Follower Combat Kills 1240 Friendly Fire -116 Cogmind --------- Core Integrity 0/1450 Matter 280/300 Energy 89/100 System Corruption 3% Temperature Cool (0) Movement Core (50) Location -2/Research Parts ------- > --- POWER (3) -------- (None) > --- PROPULSION (4) --- (None) > --- UTILITY (13) ----- Advanced Visual Processing Unit Spectral Analyzer Advanced Signal Interpreter > --- WEAPON (3) ------- Heavy Pick > --- INVENTORY (5) ---- Light Particle Reactor Antigrav System Advanced Heat Sink Advanced Recalibrator Phasing Sabre Peak State ------------ > --- POWER ------------ Angular Momentum Engine Neutrino Core > --- PROPULSION ------- Flexi-carbon Leg Flexi-carbon Leg Myomer Leg Myomer Leg > --- UTILITY ---------- Advanced Heat Sink Advanced Heat Sink Enhanced Optical Array Long-range Sensor Array Advanced Signal Interpreter Weapon Cycler Improved Weapon Cycler Improved Light Armor Plating Improved Medium Armor Plating Improved Force Field Improved Hacking Suite > --- WEAPON ----------- Heavy Beamcaster Heavy Phase Cannon > --- INVENTORY -------- Myomer Leg Myomer Leg Myomer Leg Myomer Leg [Rating: 105] Favorites ----------- Power Improved Ion Engine Engine Improved Ion Engine Power Core Micro Nuclear Core Reactor Light Particle Reactor Propulsion Carbon-fiber Leg Treads Light Treads Leg Carbon-fiber Leg Wheel Wheel Hover Unit Gravmag System Flight Unit Nuclear Pulse Array Utility Small Storage Unit Device Trap Scanner Storage Small Storage Unit Processor Advanced Signal Interpreter Hackware Improved Hacking Suite Protection Improved Medium Armor Plating Weapon Improved EM Pulse Cannon Energy Gun EM Pulse Gun Energy Cannon Improved EM Pulse Cannon Ballistic Gun Heavy Assault Rifle Launcher Heavy Missile Launcher Impact Weapon Great Maul Slashing Weapon Phasing Sabre Piercing Weapon Heavy Pick Build | -11 -10 -10 -9 -8 -7 -6 -5 -4 -4 -4 -4 -4 -3 -2 ------- Run | Yrd Mat Min Mat Mat Fac Fac Fac Fac Ext Cet Arc Hub Res Res Slots Evolved 16 | . . . 2 2 2 2 2 2 . . . . 2 2 Power 2 | . . . . . 1 . . . . . . . 1 . Propulsion 2 | . . . . 1 . 1 . . . . . . . . Utility 11 | . . . 2 1 1 1 2 2 . . . . 1 1 Weapon 1 | . . . . . . . . . . . . . . 1 Parts Attached 162 | 8 1 9 19 16 7 39 11 . 29 3 . . 17 3 Power 20 | 1 . 1 2 2 1 7 . . 4 . . . 2 . Engine 12 | 1 . . 2 2 1 5 . . 1 . . . . . Core 6 | . . 1 . . . 2 . . 3 . . . . . Reactor 2 | . . . . . . . . . . . . . 2 . Propulsion 45 | 3 . 4 5 6 . 6 2 . 12 1 . . 5 1 Treads 6 | . . . 3 . . 3 . . . . . . . . Leg 26 | 2 . 4 2 6 . 1 . . 6 1 . . 4 . Wheel 1 | 1 . . . . . . . . . . . . . . Hover 7 | . . . . . . 2 . . 4 . . . 1 . Flight 5 | . . . . . . . 2 . 2 . . . . 1 Utility 54 | 2 1 2 7 3 3 12 6 . 9 1 . . 7 1 Device 34 | 1 1 1 5 1 1 7 6 . 6 1 . . 4 . Storage 3 | 1 . 1 . . . 1 . . . . . . . . Processor 9 | . . . 1 1 1 3 . . . . . . 2 1 Hackware 2 | . . . . . . . . . 1 . . . 1 . Protection 6 | . . . 1 1 1 1 . . 2 . . . . . Artifact . | . . . . . . . . . . . . . . . Weapon 43 | 2 . 2 5 5 3 14 3 . 4 1 . . 3 1 Energy Gun 14 | 2 . 2 3 2 . 3 . . 2 . . . . . Energy Cannon 13 | . . . . 1 2 6 2 . 2 . . . . . Ballistic Gun 4 | . . . 2 . . . . . . . . . 2 . Ballistic Cannon . | . . . . . . . . . . . . . . . Launcher 7 | . . . . 2 1 3 1 . . . . . . . Special Weapon . | . . . . . . . . . . . . . . . Impact Weapon 2 | . . . . . . 2 . . . . . . . . Slashing Weapon 2 | . . . . . . . . . . 1 . . 1 . Piercing Weapon 1 | . . . . . . . . . . . . . . 1 Special Melee Weapon . | . . . . . . . . . . . . . . . Unidentified Prototypes 2 | . . . . . . . . . . . . . 1 1 Corrupted Parts 1 | . . 1 . . . . . . . . . . . . System Corruption 2 | . . 2 . . . . . . . . . . . . Parts Lost 60 | . . 6 1 1 . 20 . . 4 14 1 . 11 2 Power 11 | . . 1 1 1 . 3 . . 2 2 . . 1 . Propulsion 18 | . . 3 . . . 6 . . . 4 . . 4 1 Utility 21 | . . . . . . 7 . . 1 6 1 . 5 1 Weapon 10 | . . 2 . . . 4 . . 1 2 . . 1 . Highest Loss Streak 12 | . . 6 1 1 . 12 . . 2 11 1 . 7 2 To Critical Strikes 3 | . . . . . . . . . . 2 . . 1 . Average Slot Usage (%) 78 | . 100 88 99 99 100 80 53 57 66 59 33 21 43 15 Engine 6 | . 14 2 8 8 15 8 5 5 1 2 . . . . Core 2 | . . 11 2 . . 2 . . 3 2 . . . . Treads 2 | . . . 11 . . 3 . . . . . . . . Leg 11 | . 28 19 10 27 23 7 . . 9 11 4 . 5 . Hover 1 | . . . . . . 4 . . . . . . . . Flight 1 | . . . . . . . 9 10 5 . . . . . Device 20 | . 14 14 27 25 25 19 17 26 22 18 9 5 10 . Storage 5 | . 14 13 11 9 7 6 . . . . . . . . Processor 9 | . . . 4 9 7 11 11 10 10 10 10 10 11 14 Hackware 1 | . . . . . . . . . 4 5 5 5 5 . Protection 1 | . . . . 1 4 2 3 . 1 4 . . . . Energy Gun 4 | . 28 25 9 8 1 3 1 . 2 . . . . . Energy Cannon 3 | . . . . 6 8 4 2 5 3 . . . . . Ballistic Gun 1 | . . . 12 . . . . . . . . . 2 . Launcher 1 | . . . . 3 4 1 . . . . . . . . Peak Build Rating 105 | 9 9 10 20 32 40 53 76 76 100 105 42 24 96 33 Average Rating 40 | 8 7 7 17 29 38 41 62 76 79 63 39 24 56 23 On Entrance 33 | . 9 7 10 18 32 39 31 76 76 99 42 24 24 21 Naked Turns . | . . . . . . . . . . . . . . . Heaviest Build 70 | 15 15 14 22 31 44 50 36 35 59 70 6 1 44 3 Greatest Support 90 | 20 20 20 43 47 47 62 35 35 90 90 25 3 75 8 Greatest Overweight (x) 5 | 1 . 4 1 . . 5 1 . 2 2 . . 2 . Average Overweight (x) . | . . . . . . . . . . . . . . . Largest Inventory Capacity 8 | 8 8 8 8 8 8 8 5 5 5 5 5 5 5 5 Average Capacity 6 | 7 8 7 8 8 8 7 5 5 5 5 5 5 5 5 Most Carried 8 | 5 6 8 8 8 8 8 5 5 5 5 5 5 5 5 Average Carried 5 | 4 5 5 7 7 7 6 4 5 4 4 4 5 3 5 Final Capacity 8 | 8 8 8 8 8 8 5 5 5 5 5 5 5 5 5 Final Carried 8 | 5 6 7 8 8 8 5 5 5 5 5 5 5 5 5 Class Distribution -------------------- 59% | Mutant 12% | Skirmisher 9% | Scavenger-Skirmisher 4% | Scavenger-Mutant 4% | Scavenger-Assassin 3% | Scout 3% | Assassin Dominant Class ---------------- Mutant | -10/Materials Mutant | -10/Mines Mutant | -9/Materials Mutant | -8/Materials Skirmisher | -7/Factory Skirmisher | -6/Factory Mutant | -5/Factory Mutant | -4/Factory Mutant | -4/Extension Mutant | -4/Cetus Mutant | -4/Archives Mutant | -4/Hub_04(d) Hacker-Mutant | -3/Research Mutant | -2/Research Resources | -11 -10 -10 -9 -8 -7 -6 -5 -4 -4 -4 -4 -4 -3 -2 ----------- Run | Yrd Mat Min Mat Mat Fac Fac Fac Fac Ext Cet Arc Hub Res Res Matter Collected 2215 | 280 . 87 350 211 34 537 27 177 302 30 . . 180 . Remotely 311 | . . . 311 . . . . . . . . . . . Salvage Created 3515 | 333 . 215 443 510 52 958 47 . 566 132 . . 259 . Parts 205 | 30 . 17 29 29 10 43 2 . 24 4 . . 17 . Haulers Intercepted . | . . . . . . . . . . . . . . . Recyclers Shooed 2 | . . . . 1 . 1 . . . . . . . . Parts Field Recycled . | . . . . . . . . . . . . . . . Retrieved Matter . | . . . . . . . . . . . . . . . Parts Self-Destructed . | . . . . . . . . . . . . . . . Prevented . | . . . . . . . . . . . . . . . Kills | -11 -10 -10 -9 -8 -7 -6 -5 -4 -4 -4 -4 -4 -3 -2 ------- Run | Yrd Mat Min Mat Mat Fac Fac Fac Fac Ext Cet Arc Hub Res Res Combat Hostiles Destroyed 64 | . . 7 8 14 4 18 1 . 7 2 . . 3 . Melee 6 | . . . . . . 1 . . . 2 . . 3 . Guns 22 | . . 7 7 1 . 3 . . 4 . . . . . Cannons 7 | . . . . 2 . 3 . . 2 . . . . . AOE 23 | . . . . 11 4 8 . . . . . . . . Classes Destroyed 14 | 3 . 2 3 1 . 4 . . 1 . . . . . Worker 9 | 4 . . . 2 2 1 . . . . . . . . Builder 5 | . . . 1 . . 1 3 . . . . . . . Tunneler 10 | 8 . . . . . 2 . . . . . . . . Recycler 2 | 1 . . . . . 1 . . . . . . . . Operator 1 | . . . . 1 . . . . . . . . . . Watcher 10 | . . . 4 1 1 3 . . . . . . 1 . Swarmer 11 | . . 3 1 3 4 . . . . . . . . . Grunt 28 | . . 4 4 8 . 7 . . 3 . . . 2 . Brawler 1 | . . . . . . 1 . . . . . . . . Duelist 1 | . . . . . . 1 . . . . . . . . Sentry 14 | . . . 3 3 . 3 1 . 3 . . . 1 . Specialist 2 | . . . . . . 2 . . . . . . . . Hunter 3 | . . . . . . . . . 1 2 . . . . Programmer 4 | . . . . . . 4 . . . . . . . . Best Kill Streak 9 | 4 . 3 2 6 4 9 3 . 2 1 . . 3 . Combat Bots Only 6 | . . 3 2 6 4 5 1 . 2 1 . . 2 . Max Kills in Single Turn 5 | 1 . 2 1 5 4 2 2 . 1 1 . . 1 . Gunslinging 1 | . . 1 . . . . . . . . . . . . Exploded 5 | . . . . 5 4 1 . . . . . . . . Melee 1 | . . . . . . 1 . . . 1 . . 1 . Uniques/NPCs Destroyed . | . . . . . . . . . . . . . . . Combat | -11 -10 -10 -9 -8 -7 -6 -5 -4 -4 -4 -4 -4 -3 -2 -------- Run | Yrd Mat Min Mat Mat Fac Fac Fac Fac Ext Cet Arc Hub Res Res Hostile Shots Fired 954 | . 3 73 55 28 3 314 14 1 86 131 24 16 102 104 Missed 339 | . . 14 18 9 2 114 4 . 46 43 11 7 27 44 Damage Taken 10575 | 15 43 751 494 404 296 2116 271 24 724 1824 368 166 1546 1533 Core 4045 | . 18 183 90 40 . 458 50 . 93 473 284 162 742 1452 Absorbed by Shields 171 | . . . . . . . . . 34 99 . . 38 . Ignored by Resistances 12 | . . . . . . 12 . . . . . . . . Core Remaining (%) 64 | 100 . 19 77 92 100 46 95 . . . . 12 42 . Volleys Fired 256 | 21 . 27 45 22 2 53 11 . 59 11 . . 5 . Largest 2 | 2 . 2 2 2 2 2 1 . 2 2 . . 1 . Hottest 171 | 80 . 80 90 120 108 170 90 . 171 171 . . 35 . Shots Fired 398 | 42 . 40 88 36 4 91 11 . 68 13 . . 5 . Gun 258 | 42 . 40 88 20 . 28 . . 27 8 . . 5 . Cannon 114 | . . . . 12 2 47 7 . 41 5 . . . . Launcher 26 | . . . . 4 2 16 4 . . . . . . . Special . | . . . . . . . . . . . . . . . Kinetic 60 | . . . 55 . . . . . . . . . 5 . Thermal 149 | . . 26 17 12 . 28 7 . 46 13 . . . . Explosive 26 | . . . . 4 2 16 4 . . . . . . . Electromagnetic 163 | 42 . 14 16 20 2 47 . . 22 . . . . . Robot Hit Streak 11 | 7 . 11 7 4 2 10 9 . 8 2 . . 2 . Robot Miss Streak 5 | 4 . 2 4 5 1 5 2 . 3 2 . . 2 . Penetration Max . | . . . . . . . . . . . . . . . Secondary Targets 1 | . . 1 . . . . . . . . . . . . Max Gunslinging Chain 1 | . . 1 . . . . . . . . . . . . Shots Hit Robots 270 | 26 . 27 49 13 2 74 7 . 33 20 . . 19 . Core Hits 173 | 14 . 13 18 36 6 50 4 . 17 5 . . 10 . Critical Kills 2 | . . . . . . 1 1 . . . . . . . Critical Parts Destroyed 2 | . . . 1 . . 1 . . . . . . . . Critical Strikes 16 | 2 . . 1 1 . 4 1 . . 3 . . 4 . Burn 2 | . . . . . . 2 . . . . . . . . Meltdown 1 | . . . . . . . 1 . . . . . . . Destroy 1 | . . . 1 . . . . . . . . . . . Corrupt 3 | 2 . . . 1 . . . . . . . . . . Smash 2 | . . . . . . 2 . . . . . . . . Sever 7 | . . . . . . . . . . 3 . . 4 . Melee Attacks 69 | . . . . . . 13 . . . 22 10 . 23 1 Impact 13 | . . . . . . 13 . . . . . . . . Slashing 55 | . . . . . . . . . . 22 10 . 23 . Piercing 1 | . . . . . . . . . . . . . . 1 Sneak Attacks . | . . . . . . . . . . . . . . . Combat Hostiles . | . . . . . . . . . . . . . . . Follow-up Attacks . | . . . . . . . . . . . . . . . Damage Inflicted 11001 | 456 . 359 935 1488 745 4075 366 . 957 780 . 10 808 22 Guns 2704 | 340 . 359 782 121 . 481 . . 471 94 . . 56 . Cannons 2056 | . . . . 128 31 1136 101 . 486 174 . . . . Explosions 4751 | 116 . . 153 1239 714 2264 265 . . . . . . . Melee 1426 | . . . . . . 192 . . . 512 . . 722 . Ramming 64 | . . . . . . 2 . . . . . 10 30 22 Kinetic 481 | . . . 425 . . . . . . . . . 56 . Thermal 2578 | 116 . 215 324 128 344 481 101 . 601 268 . . . . Explosive 4135 | . . . . 1236 370 2264 265 . . . . . . . Electromagnetic 2317 | 340 . 144 186 124 31 1136 . . 356 . . . . . Impact 192 | . . . . . . 192 . . . . . . . . Slashing 1234 | . . . . . . . . . . 512 . . 722 . Piercing . | . . . . . . . . . . . . . . . Highest Corruption 7 | . . 2 . . . 3 . . . . . 1 7 3 Average Corruption 2 | . . 2 . . . 2 . . . . . 1 3 2 Corruption Purged . | . . . . . . . . . . . . . . . Corruption Blocked . | . . . . . . . . . . . . . . . Effects 22 | . . 2 . . . 15 . . . . . . 4 1 Message Errors 7 | . . 1 . . . 5 . . . . . . 1 . Matter Fused 5 | . . 1 . . . 3 . . . . . . . 1 Heat Flow Errors 4 | . . . . . . 2 . . . . . . 2 . Energy Discharges 3 | . . . . . . 2 . . . . . . 1 . Data Loss (minor) 2 | . . . . . . 2 . . . . . . . . Data Loss (major) 1 | . . . . . . 1 . . . . . . . . Overload Shots . | . . . . . . . . . . . . . . . Overflow Damage 309 | . . . 1 8 93 135 37 . . 35 . . . . Projectiles 44 | . . . . . . 44 . . . . . . . . Explosions 171 | . . . 1 8 93 32 37 . . . . . . . Melee 94 | . . . . . . 59 . . . 35 . . . . Knockbacks 1 | . . . . . . . . . . . . . 1 . Impact 1 | . . . . . . . . . . . . . 1 . Kinetic . | . . . . . . . . . . . . . . . Secondary . | . . . . . . . . . . . . . . . Self-Inflicted Damage 647 | 15 . . 10 108 284 170 32 . . . . 4 14 10 Shots 17 | 1 . . 1 3 4 7 1 . . . . . . . Rammed 14 | . . . . . . 1 . . . . . 2 5 6 Targets Rammed 14 | . . . . . . 1 . . . . . 2 5 6 Kicked . | . . . . . . . . . . . . . . . Crushed . | . . . . . . . . . . . . . . . Highest Temperature 369 | 126 9 232 197 153 84 268 234 . 369 58 . . 200 . Average Temperature 78 | 44 9 133 63 58 42 90 95 . 65 28 . . 97 . Received Heat Transfer 1819 | . 42 405 258 135 . 504 45 . 48 53 45 . 221 63 Siege Activations . | . . . . . . . . . . . . . . . Robots Corrupted 7 | . . . 1 . . 5 . . 1 . . . . . Combat Hostiles 5 | . . . 1 . . 3 . . 1 . . . . . Parts Fried 15 | 1 . 1 2 1 . 9 . . 1 . . . . . Impact Corruptions 2 | . . . . . . 2 . . . . . . . . Robots Melted 1 | . . . . . . . 1 . . . . . . . Combat Hostiles 1 | . . . . . . . 1 . . . . . . . Parts Melted 11 | . . 1 1 . . 6 . . 3 . . . . . Heat Transferred 4220 | 250 . 475 607 185 200 1375 111 . 684 333 . . . . Parts Sabotaged . | . . . . . . . . . . . . . . . Parts Stolen . | . . . . . . . . . . . . . . . Parts Stripped . | . . . . . . . . . . . . . . . Power Chain Reactions 7 | 4 . . 3 . . . . . . . . . . . Alert | -11 -10 -10 -9 -8 -7 -6 -5 -4 -4 -4 -4 -4 -3 -2 ------- Run | Yrd Mat Min Mat Mat Fac Fac Fac Fac Ext Cet Arc Hub Res Res Peak Influence 694 | 65 . 110 219 487 379 359 255 139 694 425 160 75 203 538 Initial 388 | . . . 42 46 221 106 91 124 67 388 108 56 39 . Average 205 | 25 . 63 100 261 254 211 165 136 395 303 137 61 124 220 Maximum Alert Level 2 | . . . 1 2 1 1 1 . 2 2 . . 1 2 Low Security (%) 53 | 100 100 100 92 32 16 47 51 100 19 . 100 100 95 46 Level 1 36 | . . . 7 33 83 52 48 . 27 99 . . 4 24 Level 2 10 | . . . . 33 . . . . 52 . . . . 28 Level 3 . | . . . . . . . . . . . . . . . Level 4 . | . . . . . . . . . . . . . . . Level 5 . | . . . . . . . . . . . . . . . High Security . | . . . . . . . . . . . . . . . Max Security . | . . . . . . . . . . . . . . . Squads Dispatched 22 | . . . 1 1 . 9 . 1 3 1 . 1 3 2 Investigation 7 | . . . . . . . . 1 1 1 . 1 1 2 Extermination 4 | . . . . . . 3 . . . . . . 1 . Reinforcement 8 | . . . 1 1 . 3 . . 2 . . . 1 . Assault . | . . . . . . . . . . . . . . . Garrison 3 | . . . . . . 3 . . . . . . . . Intercept . | . . . . . . . . . . . . . . . Searches Triggered . | . . . . . . . . . . . . . . . Construction Impeded 1 | . . . . . . 1 . . . . . . . . Haulers Reinforced 1 | . . . . . . 1 . . . . . . . . Active Scanning Responses . | . . . . . . . . . . . . . . . Cargo Convoy Interrupts . | . . . . . . . . . . . . . . . Stealth | -11 -10 -10 -9 -8 -7 -6 -5 -4 -4 -4 -4 -4 -3 -2 --------- Run | Yrd Mat Min Mat Mat Fac Fac Fac Fac Ext Cet Arc Hub Res Res Distress Signals 14 | . . . 1 1 . 2 . . 1 1 . . 2 6 Communications Jammed . | . . . . . . . . . . . . . . . Distress Signals . | . . . . . . . . . . . . . . . Times Spotted 184 | . 2 7 15 21 5 27 6 1 23 7 4 4 15 47 Peak Tracking Total 18 | . 2 3 3 7 4 5 5 1 4 5 4 4 6 18 Tactical Retreats 15 | . . . 1 1 . 2 . . . . . . 4 7 Traps | -11 -10 -10 -9 -8 -7 -6 -5 -4 -4 -4 -4 -4 -3 -2 ------- Run | Yrd Mat Min Mat Mat Fac Fac Fac Fac Ext Cet Arc Hub Res Res Traps Triggered 6 | . . . . . . 1 2 . 2 . . . 1 . Indirectly . | . . . . . . . . . . . . . . . Trap Hack Attempts . | . . . . . . . . . . . . . . . Triggered . | . . . . . . . . . . . . . . . Disarmed . | . . . . . . . . . . . . . . . Reprogrammed . | . . . . . . . . . . . . . . . Reused . | . . . . . . . . . . . . . . . Traps Extracted . | . . . . . . . . . . . . . . . Installed . | . . . . . . . . . . . . . . . Triggered 1 | . . . 1 . . . . . . . . . . . Machines | -11 -10 -10 -9 -8 -7 -6 -5 -4 -4 -4 -4 -4 -3 -2 ---------- Run | Yrd Mat Min Mat Mat Fac Fac Fac Fac Ext Cet Arc Hub Res Res Machines Disabled 14 | . . . 1 4 3 4 . . 1 . 1 . . . Max in Single Turn 3 | . . . 1 2 3 2 . . . . 1 . . . Machines Repaired . | . . . . . . . . . . . . . . . Machines Dismantled . | . . . . . . . . . . . . . . . Machines Sabotaged . | . . . . . . . . . . . . . . . Overloaded Fab Kills . | . . . . . . . . . . . . . . . Hacking | -11 -10 -10 -9 -8 -7 -6 -5 -4 -4 -4 -4 -4 -3 -2 --------- Run | Yrd Mat Min Mat Mat Fac Fac Fac Fac Ext Cet Arc Hub Res Res Machines Accessed 28 | . . . 1 . . 3 . 1 12 3 . 1 2 5 Terminals 26 | . . . 1 . . 2 . 1 12 3 . 1 2 4 Fabricators 1 | . . . . . . . . . . . . . . 1 Repair Stations . | . . . . . . . . . . . . . . . Recycling Units 1 | . . . . . . 1 . . . . . . . . Scanalyzers . | . . . . . . . . . . . . . . . Garrison Access . | . . . . . . . . . . . . . . . Total Hacks 55 | . . . 1 . . 5 . 4 20 7 . 3 5 10 Successful 27 | . . . . . . 3 . . 14 5 . 1 2 2 Failed 28 | . . . 1 . . 2 . 4 6 2 . 2 3 8 Catastrophic 4 | . . . 1 . . . . . 2 . . . . 1 Database Lockouts . | . . . . . . . . . . . . . . . Manual 5 | . . . . . . . . . 4 . . 1 . . Terminals 53 | . . . 1 . . 4 . 4 20 7 . 3 5 9 Fabricators 1 | . . . . . . . . . . . . . . 1 Repair Stations . | . . . . . . . . . . . . . . . Recycling Units 1 | . . . . . . 1 . . . . . . . . Scanalyzers . | . . . . . . . . . . . . . . . Garrison Access . | . . . . . . . . . . . . . . . Terminal Hacks 25 | . . . . . . 2 . . 14 5 . 1 2 1 Record 12 | . . . . . . 1 . . 5 4 . 1 . 1 Open Door 10 | . . . . . . . . . 9 1 . . . . Open DSF 2 | . . . . . . 1 . . . . . . 1 . Level Access Points 1 | . . . . . . . . . . . . . 1 . Fabricator Hacks 1 | . . . . . . . . . . . . . . 1 Network Status 1 | . . . . . . . . . . . . . . 1 Repair Station Hacks . | . . . . . . . . . . . . . . . Recycling Unit Hacks 1 | . . . . . . 1 . . . . . . . . Retrieve Components 1 | . . . . . . 1 . . . . . . . . Scanalyzer . | . . . . . . . . . . . . . . . Garrison Access Hacks . | . . . . . . . . . . . . . . . Unauthorized Hacks . | . . . . . . . . . . . . . . . Terminals . | . . . . . . . . . . . . . . . Fabricators . | . . . . . . . . . . . . . . . Repair Stations . | . . . . . . . . . . . . . . . Recycling Units . | . . . . . . . . . . . . . . . Scanalyzers . | . . . . . . . . . . . . . . . Garrison Access . | . . . . . . . . . . . . . . . Data Cores Recovered . | . . . . . . . . . . . . . . . Used . | . . . . . . . . . . . . . . . Hacking Detections 14 | . . . 1 . . . . 1 4 3 . 1 1 3 Full Trace Events 6 | . . . . . . . . 1 . 1 . 1 1 2 Feedback Events 1 | . . . . . . . . . . . . 1 . . Corruption 1 | . . . . . . . . . . . . 1 . . Feedback Blocked . | . . . . . . . . . . . . . . . Robot Schematics Acquired . | . . . . . . . . . . . . . . . Robots Built . | . . . . . . . . . . . . . . . Authchips . | . . . . . . . . . . . . . . . Time . | . . . . . . . . . . . . . . . Total Robot Build Rating . | . . . . . . . . . . . . . . . Part Schematics Acquired . | . . . . . . . . . . . . . . . Parts Built . | . . . . . . . . . . . . . . . Authchips . | . . . . . . . . . . . . . . . Time . | . . . . . . . . . . . . . . . Total Part Build Rating . | . . . . . . . . . . . . . . . Parts Repaired . | . . . . . . . . . . . . . . . Time . | . . . . . . . . . . . . . . . Parts Recycled . | . . . . . . . . . . . . . . . Recycled Matter . | . . . . . . . . . . . . . . . Retrieved Matter . | . . . . . . . . . . . . . . . Retrieved Components 3 | . . . . . . 3 . . . . . . . . Parts Scanalyzed . | . . . . . . . . . . . . . . . Part Schematics Acquired . | . . . . . . . . . . . . . . . Parts Damaged . | . . . . . . . . . . . . . . . Bothacking | -11 -10 -10 -9 -8 -7 -6 -5 -4 -4 -4 -4 -4 -3 -2 ------------ Run | Yrd Mat Min Mat Mat Fac Fac Fac Fac Ext Cet Arc Hub Res Res Used RIF Installer . | . . . . . . . . . . . . . . . Robots Hacked . | . . . . . . . . . . . . . . . Non-combat . | . . . . . . . . . . . . . . . Combat . | . . . . . . . . . . . . . . . Robot Hacks Applied . | . . . . . . . . . . . . . . . Relay Couplers Released . | . . . . . . . . . . . . . . . Fabnet Peak Effective % . | . . . . . . . . . . . . . . . Robots Rewired 3 | . . . . . . . . . 3 . . . . . Allies Hacked . | . . . . . . . . . . . . . . . Hacks Repelled . | . . . . . . . . . . . . . . . Allies | -11 -10 -10 -9 -8 -7 -6 -5 -4 -4 -4 -4 -4 -3 -2 -------- Run | Yrd Mat Min Mat Mat Fac Fac Fac Fac Ext Cet Arc Hub Res Res Total Allies 14 | . . . . . . . . . 14 . . . . . Largest Group 9 | . . . . . . . . . 9 7 . . . . Highest-Rated Group 454 | . . . . . . . . . 454 370 . . . . Highest-Rated Ally 159 | . . . . . . . . . 159 153 . . . . Total Orders 2 | . . . . . . . . . 2 . . . . . EXPLORE 2 | . . . . . . . . . 2 . . . . . Ally Attacks 149 | . . . . . . . . . 118 31 . . . . Total Damage 5189 | . . . . . . . . . 4400 789 . . . . Kills 25 | . . . . . . . . . 22 3 . . . . Allies Corrupted . | . . . . . . . . . . . . . . . Allies Melted 1 | . . . . . . . . . 1 . . . . . Intel | -11 -10 -10 -9 -8 -7 -6 -5 -4 -4 -4 -4 -4 -3 -2 ------- Run | Yrd Mat Min Mat Mat Fac Fac Fac Fac Ext Cet Arc Hub Res Res Robot Analysis Total . | . . . . . . . . . . . . . . . Derelict Logs Recovered 1 | . . 1 . . . . . . . . . . . . Drone Launches 3 | . . . . . . . 2 . 1 . . . . . Drone Recoveries 3 | . . . . . . . 1 . 2 . . . . . Exploration | -11 -10 -10 -9 -8 -7 -6 -5 -4 -4 -4 -4 -4 -3 -2 ------------- Run | Yrd Mat Min Mat Mat Fac Fac Fac Fac Ext Cet Arc Hub Res Res Turns Passed 7656 | 560 42 249 1021 660 581 2174 342 39 990 346 63 7 401 181 Spaces Moved 5250 | 118 34 107 578 444 427 1232 495 97 693 222 41 10 400 352 Core 758 | 9 . 11 . . . 144 . . . 5 18 10 285 276 Treads 508 | . . . 241 . . 241 26 . . . . . . . Legs 2513 | 105 34 96 337 444 427 445 . . 285 217 23 . 100 . Wheels 4 | 4 . . . . . . . . . . . . . . Hover 423 | . . . . . . 402 . . 6 . . . 15 . Flight 1044 | . . . . . . . 469 97 402 . . . . 76 Fastest Speed 28 | 50 120 120 120 120 123 100 37 37 28 100 50 50 50 40 Average Speed 106 | 116 120 151 136 120 123 149 45 37 74 120 89 50 71 47 Slowest Speed 400 | 120 120 250 190 123 123 400 250 37 200 150 120 50 260 50 Overloaded Moves . | . . . . . . . . . . . . . . . Propulsion Burnouts . | . . . . . . . . . . . . . . . Robots Hopped 3 | . . . . . . . 2 . 1 . . . . . Cave-ins Triggered . | . . . . . . . . . . . . . . . Exploration Rate (%) 31 | 7 14 11 43 38 12 38 17 5 80 87 74 3 17 25 Regions Visited 14 Branch Regions 5 Pre-discovered Areas . | . . . . . . . . . . . . . . . Known Exits Taken 8 | . . . 1 . 1 1 1 1 1 . . 1 1 . Unknown Exits Taken 6 | 1 1 1 . 1 . . . . . 1 1 . . . Scrap Searched 1 | . . 1 . . . . . . . . . . . . Spaces Dug 9 | . . . . . . 4 1 . 1 . 1 . 1 1 Terrain Destroyed 324 | 6 . . 22 55 29 111 71 . 27 . 1 . 1 1 Melee 7 | . . . . . . 4 . . . . 1 . 1 1 Projectile 37 | . . . . 6 . . 4 . 27 . . . . . AOE 280 | 6 . . 22 49 29 107 67 . . . . . . . Terrain Rammed . | . . . . . . . . . . . . . . . Walls Destroyed . | . . . . . . . . . . . . . . . Machines Disabled . | . . . . . . . . . . . . . . . Actions | -11 -10 -10 -9 -8 -7 -6 -5 -4 -4 -4 -4 -4 -3 -2 --------- Run | Yrd Mat Min Mat Mat Fac Fac Fac Fac Ext Cet Arc Hub Res Res Total 6825 | 495 35 152 722 536 478 1442 599 99 1106 259 53 11 475 363 Wait 818 | 342 . . 51 28 36 74 28 3 249 . . . 7 . Move 5231 | 117 33 106 577 443 426 1231 490 96 690 221 40 10 399 352 Hop 3 | . . . . . . . 2 . 1 . . . . . Pick Up 56 | 5 . 4 10 10 3 8 5 . 6 2 . . 3 . Fast Attach 90 | 8 1 8 9 3 2 16 8 . 21 1 . . 10 3 Attach 35 | . . 1 2 3 2 10 3 . 6 2 . . 6 . Detach 36 | 1 1 1 4 2 2 8 6 . 5 . 1 . 5 . Swap 37 | . . . 8 10 3 13 . . 2 . . . 1 . Drop 86 | 1 . 5 16 15 2 15 10 . 17 . 2 . 2 1 Fire 256 | 21 . 27 45 22 2 53 11 . 59 11 . . 5 . Melee 69 | . . . . . . 13 . . . 22 10 . 23 1 Ram 13 | . . . . . . 1 . . . . . 1 5 6 Kick . | . . . . . . . . . . . . . . . Crush . | . . . . . . . . . . . . . . . Escape Stasis 64 | . . . . . . . 36 . 19 . . . 9 . Rewire 31 | . . . . . . . . . 31 . . . . . Trap . | . . . . . . . . . . . . . . . Miscellaneous . | . . . . . . . . . . . . . . . Route ------- -11/Scrapyard -10/Materials -10/Mines -9/Materials (discovered 2 exits: *Mat x2) -8/Materials -7/Factory -6/Factory -5/Factory -4/Factory -4/Extension (discovered 2 exits: *Res / *Cet) -4/Cetus -4/Archives -4/Hub_04(d) (discovered 2 exits: *Res x2) -3/Research (discovered 3 exits: *Res x3) -2/Research History --------- Turn | Location | Event 5 | -11/Scrapyard | Discovered new exit (range 16) 561 | -11/Scrapyard | Entered Materials 562 | -10/Materials | Build established: Mutant 591 | -10/Materials | Discovered new exit (range 11) 603 | -10/Materials | Entered Mines 656 | -10/Mines | Core integrity fell below 50% 696 | -10/Mines | Lost 6 parts (1p3n2w) 733 | -10/Mines | Discovered new exit (range 10) 739 | -10/Mines | Core integrity fell below 20% 781 | -10/Mines | Learned 2 Materials zone layouts 852 | -10/Mines | Entered Materials 852 | -9/Materials | Evolved 2 slots: Utility x2 1430 | -9/Materials | Discovered new exit (range 12) 1452 | -9/Materials | Identified exit to Materials 1790 | -9/Materials | Discovered exit to Materials (range 11) 1873 | -9/Materials | Entered another Materials area 1873 | -8/Materials | Evolved 2 slots: Propulsion x1, Utility x1 2363 | -8/Materials | Discovered new exit (range 15) 2533 | -8/Materials | Entered Factory 2533 | -7/Factory | Evolved 2 slots: Power x1, Utility x1 3028 | -7/Factory | Build established: Skirmisher 3096 | -7/Factory | Discovered new exit (range 11) 3113 | -7/Factory | Identified exit to Factory 3114 | -7/Factory | Entered another Factory area 3114 | -6/Factory | Evolved 2 slots: Propulsion x1, Utility x1 3644 | -6/Factory | Garrison activated, responded to threat 3765 | -6/Factory | Lost 4 parts (1p3n) 4165 | -6/Factory | Build established: Scavenger-Skirmisher 4905 | -6/Factory | Lost 12 parts (2p2n5u3w) 5136 | -6/Factory | Build established: Mutant 5270 | -6/Factory | Discovered new exit (range 10) 5281 | -6/Factory | Identified exit to Factory 5284 | -6/Factory | Core integrity fell below 50% 5288 | -6/Factory | Entered another Factory area 5288 | -5/Factory | Evolved 2 slots: Utility x2 5625 | -5/Factory | Discovered new exit (range 7) 5627 | -5/Factory | Identified exit to Factory 5630 | -5/Factory | Entered another Factory area 5630 | -4/Factory | Accompanied by 1 ally 5630 | -4/Factory | Evolved 2 slots: Utility x2 5640 | -4/Factory | Spotted B-86 Titan 5657 | -4/Factory | Discovered new exit (range 22) 5666 | -4/Factory | Identified exit to Extension 5669 | -4/Factory | Entered Extension 5669 | -4/Extension | Accompanied by 1 ally 5746 | -4/Extension | Rescued a captive Derelict 5750 | -4/Extension | Rescued a captive Derelict 5806 | -4/Extension | Rescued a captive Derelict 5808 | -4/Extension | Rescued a captive Derelict 5816 | -4/Extension | Rescued a captive Derelict 5859 | -4/Extension | Rescued A7 6037 | -4/Extension | Rescued a captive Derelict 6076 | -4/Extension | Spotted B-86 Titan 6374 | -4/Extension | Rescued a captive Derelict 6375 | -4/Extension | Rescued a captive Derelict 6501 | -4/Extension | Rescued a captive Derelict 6532 | -4/Extension | Rescued a captive Derelict 6628 | -4/Extension | Discovered new exit (range 10) 6629 | -4/Extension | Discovered new exit (range 6) 6635 | -4/Extension | Identified exit to Cetus 6639 | -4/Extension | Identified exit to Research 6659 | -4/Extension | Entered Cetus 6659 | -4/Cetus | Accompanied by 7 allies (A7) 6664 | -4/Cetus | Acquired a Cetus Manufacturing Module code from A7 6673 | -4/Cetus | Spotted Cetus Guard 6673 | -4/Cetus | Spotted Cetus Guard 6676 | -4/Cetus | Spotted Cetus Guard 6683 | -4/Cetus | Allies destroyed Cetus Guard 6683 | -4/Cetus | Spotted Cetus Guard 6686 | -4/Cetus | Extracted ID and sensor layout for unrecognized location from A7's data core 6713 | -4/Cetus | Allies destroyed Cetus Guard 6742 | -4/Cetus | Lost 3 parts (1u2w) 6745 | -4/Cetus | Lost 5 allies 6871 | -4/Cetus | Lost 11 parts (2p4n5u) 6928 | -4/Cetus | Discovered new exit (range 22) 7005 | -4/Cetus | Entered Archives 7021 | -4/Archives | Unable to access archive contents 7051 | -4/Archives | Core integrity fell below 50% 7053 | -4/Archives | Discovered new exit (range 22) 7068 | -4/Archives | Entered Hub_04(d) 7068 | -4/Hub_04(d) | Discovered exit to Research (range 11) 7072 | -4/Hub_04(d) | Core integrity fell below 20% 7073 | -4/Hub_04(d) | Discovered exit to Research (range 16) 7075 | -4/Hub_04(d) | Entered Research 7075 | -3/Research | Evolved 2 slots: Power x1, Utility x1 7102 | -3/Research | Found Prototype Hackware 7102 | -3/Research | Identified Exp. System Shield 7384 | -3/Research | Lost 7 parts (1p2n3u1w) 7425 | -3/Research | Identified exit to Research 7446 | -3/Research | Core integrity fell below 50% 7476 | -3/Research | Entered another Research area 7476 | -2/Research | Evolved 2 slots: Utility x1, Weapon x1 7485 | -2/Research | Found Prototype Processor 7485 | -2/Research | Identified Spectral Analyzer 7534 | -2/Research | Core integrity fell below 50% 7543 | -2/Research | Spotted B-90 Cyclops 7568 | -2/Research | Spotted B-90 Cyclops 7583 | -2/Research | Core integrity fell below 20% 7593 | -2/Research | Spotted B-90 Cyclops 7620 | -2/Research | Spotted B-90 Cyclops 7657 | -2/Research | Destroyed by S-43 Plague with Heavy Machine Gun Last Messages --------------- 07642_ System corrupted: Matter fused (-10). 07643_ Connecting with Fabricator... >>Network(Status) Querying network status... 4 records found: (147,72) - Idle (163,33) - Loaded: T-07 Excavator (83,53) - Idle (112,12) - Idle 07646_ Connecting with Terminal... >>Query(Warp Gun) This weapon is capable of redirecting a highly-concentrated plasma beam mid-flight by momentarily warping space in its path, though it is currently only possible to create one redirection field in the time of a single shot. After testing is complete, I hope to apply this technology to remote deflection of projectiles for defensive purposes. 07654_ Acquired Hvy. Pick. Map ----- +----------------------------------------------------+ | ?????????? ??????????????????????????????????? | | ?????????? ! ??????????????????????????????????? | | ??????????? ??????######???????????????????????? | | ##????????? ??????#""""#???????????????????????? | | ###########+########"F "####????????????????????? | | # / # ##???????????????????? | | # # "#???????????????????? | | / # "#???????????????????? | | # " "#???????????????????? | | # """ ######### """ T#???????????????????? | | # """ #???????# """ "#???????????????????? | | # R" ######### """ "#???????????????????? | | # """ # "#???????????????????? | | # "" # ##???????????????????? | | # # #????????????????????? | | # # #????????????????????? | | ######### ##########+#####???????????????????? | | #???????# #??#### #???????????????????? | | #???????# #? # !#???????????????????? | | ######### #? # "" #???????????????????? | | #* * # """ #???????????????????? | | # # R"s #???????????????????? | | ########## + # """ss#???????????????????? | | ?????????# # # #???????????????????? | | ?????????# # # #???????????????????? | | ?????????# #? # s@ #???????????????????? | | ?????????# #?#######+#s####???????????????????? | | ?????????# #????????? ?????#????????????????? | | ?????????# #?????? ??s s???? #????????????????? | | ?????????#= #????#? """""""? #????????????????? | | ?????????#%= #????? """"""" #????????????????? | | ?????????# #?????? """"""? #????????????????? | | ?????????# #?????? #????????????????? | | ?????????# #?????? #????????????????? | | ?????????# #?????? """"""" #????????????????? | | ?????????# #????? """"""" #????????????????? | | ?????????# #????? """"""" ??????????????????? | | ?????????# #????# ? ?????????????????? | | ?????????# #????# ?? ????????????????????? | | ??######## ############+##?#########??????????? | | ??# +? #??????????? | | / # #??????????? | | # # #??????????? | | ??# + " "" #??????????? | | ??# #################### # "R"" ! #??????????? | | ??#??????????# ??# # """" #??????????? | | ?????????????# ?# #? #??????????? | | ?????????????# ?# #? = #??????????? | | ?????????????# """ # #??################??? | | ?????????????# """ # #??????# ! #??? | +----------------------------------------------------+ Best States ------------- Heat Dissipation 84 Coolant Potential 50 Energy Generation 39 Energy Capacity 805 Matter Stores 300 Matter Capacity 300 Sight Range 24 Robot Scan Range 18 Terrain Scan Range 16 Terrain Scan Density 10 Additional Mass Support 9 Armor Coverage 375 Resistance: KI 20 Utility Shielding 33 Weapon Cycling 30 Phase Shifting 5 Evasion (%) 74 Targeting Accuracy 8 Recoil Reduction 2 Particle Charging 15 Salvage Targeting 2 Offensive Hacking 12 Defensive Hacking 16 Item Schematics ----------------- None Robot Schematics ------------------ None Fabricated ------------ Nothing Alien Tech Used ----------------- None Achievements -------------- Prison Break Quick And Dirty Challenges ------------ None Game ------ Seed TripodWeightAutobeam Manual? 0 Play Time 02:12:58 Cumulative 62.4 hours Start 2024.12.27 @ 17:06:57 End 2024.12.27 @ 19:17:50 Sessions 1 Manual Loads 0 Difficulty Rogue Special Mode None Game No. 55 Rogue 55 Adventurer 0 Explorer 0 Win Type - Total 0 Types 0/0/0/0/0/0/0/0/0 Lore% 23 Gallery% 40 Achievement% 28 Wizard Run 0 Options --------- Layout 2 ASCII 0 Keyboard 1 Movement Arrows Keybinds 0 Fullscreen 1 Font 24/Proggy Map View 50x44 Zoom Use 0% Tactical HUD 1 Map Filters NONE Filters NONE Steam 1 RUN: 489d9262-479e-4814-b1ec-286d07d0449e